bitfinex-derivatives/quotes_BTCF0:USTF0_20251206
["timestamp","ask_amount","ask_price","bid_price","bid_amount"]
[1765020894515,0.38117402,89657.0,89656.0,0.11709858]
[1765020895211,0.34117402,89657.0,89656.0,0.05701]
[1765020900019,0.31678,89657.0,89656.0,0.05701]
[1765020900410,0.31678,89657.0,89656.0,0.02968]
[1765020900610,0.05554,89654.0,89653.0,0.0549]
[1765020900813,0.5107284,89654.0,89653.0,0.0549]
[1765020901912,0.1207284,89654.0,89653.0,0.0549]
[1765020902423,0.4607284,89654.0,89653.0,0.0549]
[1765020903321,0.0807284,89654.0,89653.0,0.0549]
[1765020903510,0.4507284,89654.0,89653.0,0.0549]
[1765020906417,0.42634668,89654.0,89653.0,0.0549]
[1765020909628,0.16634668,89654.0,89653.0,0.0549]
[1765020912224,0.05634668,89654.0,89653.0,0.0549]
[1765020912427,0.37634668,89654.0,89653.0,0.0549]
[1765020919920,0.40074087,89654.0,89653.0,0.0549]
[1765020922833,0.40074087,89654.0,89653.0,0.02744]
[1765020923935,0.05554,89651.0,89650.0,0.0549]
[1765020924135,0.51074087,89651.0,89650.0,0.02744]
[1765020925038,0.51074087,89651.0,89650.0,0.02844]
[1765020925637,0.51074087,89651.0,89650.0,0.001]
[1765020928950,0.066693,89645.0,89644.0,0.00016727]
[1765020929150,0.50189387,89645.0,89644.0,0.00016727]
[1765020930052,0.47749968,89645.0,89644.0,0.00016727]
[1765020930948,0.47749968,89645.0,89644.0,0.00116727]
[1765020931345,0.47749968,89645.0,89644.0,0.05621727]
[1765020931545,0.47749968,89645.0,89644.0,0.00116727]
[1765020931744,0.47749968,89645.0,89644.0,0.03057727]
[1765020933853,0.47749968,89645.0,89644.0,0.09069206]
[1765020936655,0.47749968,89645.0,89644.0,0.11830206]
[1765020939253,0.05634668,89645.0,89644.0,0.11830206]
[1765020939956,0.05634668,89645.0,89644.0,0.05818727]
[1765020945057,0.05554,89645.0,89644.0,0.46818727]
[1765020945358,0.05875,89657.0,89656.0,0.05702]
[1765020945560,0.47340706,89657.0,89656.0,0.05702]
[1765020947663,0.44875,89657.0,89656.0,0.05702]
[1765020948566,0.47340509,89657.0,89656.0,0.05702]
[1765020948965,0.44875,89657.0,89656.0,0.05702]
[1765020949761,0.47340495,89657.0,89656.0,0.05702]
[1765020949957,0.48455645,89657.0,89656.0,0.05702]
[1765020950266,0.05875,89652.0,89651.0,0.0111523]
[1765020950462,0.44875,89652.0,89651.0,0.0405623]
[1765020951066,0.44875,89652.0,89651.0,0.0681723]
[1765020956880,0.08875,89652.0,89651.0,0.0681723]
[1765020960670,0.29875,89652.0,89651.0,0.0681723]
[1765020961466,0.33875,89652.0,89651.0,0.0681723]
[1765020964278,0.09875,89652.0,89651.0,0.0681723]
[1765020966775,0.09875,89652.0,89651.0,0.12827331]
[1765020969579,0.09875,89652.0,89651.0,0.0681723]
[1765020969975,0.1232061,89652.0,89651.0,0.0681723]
[1765020971780,0.0832061,89652.0,89651.0,0.0681723]
[1765020973873,0.0533961,89652.0,89651.0,0.0681723]
[1765020974080,0.0533961,89652.0,89651.0,0.4581723]
[1765020975181,0.05340926,89652.0,89651.0,0.4581723]
[1765020975379,0.02446926,89652.0,89651.0,0.4581723]
[1765020975682,0.02446926,89652.0,89651.0,0.51828048]
[1765020975882,0.00016727,89661.0,89660.0,0.0678812]
[1765020976282,0.0246342,89661.0,89660.0,0.0678812]
[1765020977075,0.0256342,89661.0,89660.0,0.0678812]
[1765020977476,0.0536342,89661.0,89660.0,0.0678812]
[1765020977682,0.0828442,89661.0,89660.0,0.0678812]
[1765020979983,0.05837727,89661.0,89660.0,0.0678812]
[1765020987690,0.00116727,89661.0,89660.0,0.4678812]
[1765020987894,0.00116727,89661.0,89660.0,0.52800421]
[1765020989883,0.00116727,89661.0,89660.0,0.4678812]
[1765020994194,0.05621727,89661.0,89660.0,0.52800421]
[1765020994397,0.05621727,89661.0,89660.0,0.12800421]
[1765020994894,0.05621727,89661.0,89660.0,0.0678812]
[1765020997201,0.05621727,89661.0,89660.0,0.12800421]
[1765021000105,0.05621727,89661.0,89660.0,0.0678812]
[1765021001506,0.05621727,89661.0,89660.0,0.12800421]
[1765021004306,0.05621727,89661.0,89660.0,0.0678812]
[1765021006511,0.02915727,89661.0,89660.0,0.0678812]
[1765021007611,0.00116727,89661.0,89660.0,0.0678812]
[1765021007809,0.00116727,89661.0,89660.0,0.4878812]
[1765021010013,0.00116727,89661.0,89660.0,0.54793686]
[1765021010314,0.00116727,89661.0,89660.0,0.4878812]
[1765021015518,0.0674684,89682.0,89681.0,0.05622]
[1765021015711,0.48184265,89682.0,89681.0,0.05622]
[1765021016719,0.48584265,89682.0,89681.0,0.05622]
[1765021019723,0.47469425,89682.0,89681.0,0.0673686]
[1765021021221,0.47069425,89682.0,89681.0,0.0673686]
[1765021021424,0.47369425,89682.0,89681.0,0.0673686]
[1765021021618,0.05662,89680.0,89679.0,0.0409888]
[1765021021823,0.0677694,89674.0,89673.0,0.00016727]
[1765021022027,0.44295033,89674.0,89673.0,0.00016727]
[1765021022819,0.07001,89664.0,89663.0,0.06005585]
[1765021023011,0.05662,89663.0,89662.0,0.0111509]
[1765021023211,0.05662,89663.0,89659.0,0.01130259]
[1765021023212,0.05662,89660.0,89659.0,0.01130259]
[1765021023408,0.48190326,89660.0,89659.0,0.01130259]
[1765021023810,0.05662,89652.0,89651.0,0.09006312]
[1765021024012,0.33742668,89652.0,89651.0,0.11884312]
[1765021024522,0.33742668,89652.0,89651.0,0.05878727]
[1765021024913,0.33742668,89652.0,89651.0,0.05978727]
[1765021026725,0.33742668,89652.0,89651.0,0.00116727]
[1765021027218,0.33742668,89652.0,89651.0,0.03100727]
[1765021028013,0.33742668,89652.0,89651.0,0.05978727]
[1765021032326,0.36196888,89652.0,89651.0,0.00116727]
[1765021033324,0.34857888,89652.0,89651.0,0.03100727]
[1765021034621,0.33742668,89652.0,89651.0,0.05978727]
[1765021035327,0.07742668,89652.0,89651.0,0.05978727]
[1765021044333,0.46081668,89652.0,89651.0,0.00116727]
[1765021044840,0.46081668,89652.0,89651.0,0.03100727]
[1765021045633,0.44742668,89652.0,89651.0,0.03100727]
[1765021045835,0.44742668,89652.0,89651.0,0.05978727]
[1765021046226,0.44742668,89652.0,89651.0,0.03100727]
[1765021046426,0.44742668,89652.0,89651.0,0.05978727]
[1765021050327,0.44742668,89652.0,89651.0,0.00116727]
[1765021050637,0.46081668,89652.0,89651.0,0.00116727]
[1765021051138,0.48529112,89652.0,89651.0,0.00116727]
[1765021061032,0.47190112,89652.0,89651.0,0.02826727]
[1765021061433,0.47190861,89652.0,89651.0,0.02826727]
[1765021062544,0.47190861,89652.0,89651.0,0.00116727]
[1765021064746,0.47190861,89652.0,89651.0,0.05764727]
[1765021065045,0.47190861,89652.0,89651.0,0.00116727]
[1765021065835,0.47190861,89652.0,89651.0,0.02826727]
[1765021070940,0.47190861,89652.0,89651.0,0.00116727]
[1765021073160,0.48529861,89652.0,89651.0,0.00116727]
[1765021073444,0.05571,89640.0,89639.0,0.06005585]
[1765021073641,0.05571,89640.0,89631.0,0.0111547]
[1765021073642,0.0668638,89639.0,89638.0,0.06005585]
[1765021073842,0.41564628,89639.0,89636.0,0.06005585]
[1765021074047,0.41564628,89639.0,89625.0,0.01708]
[1765021074048,0.05571,89634.0,89633.0,0.06005585]
[1765021074244,0.0111545,89633.0,89632.0,0.06005585]
[1765021074455,0.4368645,89633.0,89632.0,0.06005585]
[1765021074952,0.4368645,89633.0,89632.0,0.08782585]
[1765021075250,0.4368645,89633.0,89632.0,0.02777]
[1765021075838,0.4368645,89633.0,89632.0,0.03177]
[1765021077248,0.4368645,89633.0,89632.0,0.004]
[1765021077455,0.066865,89629.0,89628.0,0.11753585]
[1765021077641,0.48767168,89629.0,89628.0,0.11753585]
[1765021078356,0.48767168,89629.0,89628.0,0.05748]
[1765021078650,0.48767168,89629.0,89628.0,0.05848]
[1765021081249,0.48767168,89629.0,89628.0,0.07422]
[1765021081452,0.48767168,89629.0,89628.0,0.07522]
[1765021087857,0.14651668,89629.0,89628.0,0.07522]
[1765021088152,0.0679841,89637.0,89636.0,0.05804]
[1765021088364,0.05683,89637.0,89636.0,0.05804]
[1765021088541,0.05699727,89642.0,89641.0,0.05804]
[1765021088746,0.47246015,89642.0,89641.0,0.05804]
[1765021089040,0.44780395,89642.0,89641.0,0.05804]
[1765021090853,0.44880395,89642.0,89641.0,0.05804]
[1765021091453,0.44780395,89642.0,89641.0,0.05904]
[1765021093654,0.44780395,89642.0,89641.0,0.05804]
[1765021093956,0.44780395,89642.0,89641.0,0.05904]
[1765021097556,0.05780395,89642.0,89641.0,0.05904]
[1765021097755,0.06780395,89642.0,89641.0,0.05904]
[1765021099255,0.45780395,89642.0,89641.0,0.05904]
[1765021100360,0.48247694,89642.0,89641.0,0.05904]
[1765021100560,0.45780395,89642.0,89641.0,0.05904]
[1765021101162,0.45699727,89642.0,89641.0,0.05904]
[1765021102262,0.48167447,89642.0,89641.0,0.05904]
[1765021103566,0.45699727,89642.0,89641.0,0.05904]
[1765021106873,0.05699727,89642.0,89641.0,0.05904]
[1765021113574,0.48699727,89642.0,89641.0,0.05904]
[1765021115059,0.48699727,89642.0,89641.0,0.02912]
[1765021115263,0.48699727,89642.0,89641.0,0.001]
[1765021115667,0.48699727,89642.0,89641.0,0.02874]
[1765021118177,0.48699727,89642.0,89641.0,0.001]
[1765021118377,0.48699727,89642.0,89641.0,0.02874]
[1765021121382,0.48699727,89642.0,89641.0,0.05636]
[1765021121683,0.43906727,89642.0,89641.0,0.05636]
[1765021121976,0.46810727,89642.0,89641.0,0.05636]
[1765021123483,0.05810727,89642.0,89641.0,0.05636]
[1765021123681,0.10810727,89642.0,89641.0,0.05636]
[1765021123886,0.05810727,89642.0,89641.0,0.05636]
[1765021130694,0.02906727,89642.0,89641.0,0.05636]
[1765021131086,0.02906727,89642.0,89641.0,0.44636]
[1765021131285,0.00016727,89642.0,89641.0,0.44636]
[1765021131590,0.067431,89662.0,89661.0,0.05617]
[1765021131892,0.5030028,89662.0,89661.0,0.05617]
[1765021132484,0.5030028,89662.0,89661.0,0.028]
[1765021132778,0.5030028,89662.0,89653.0,0.00016727]
[1765021132979,0.05708668,89654.0,89653.0,0.06748927]
[1765021133194,0.42708668,89654.0,89653.0,0.06748927]
[1765021134288,0.42808668,89654.0,89653.0,0.06748927]
[1765021134688,0.42708668,89654.0,89653.0,0.06748927]
[1765021144805,0.42628,89654.0,89653.0,0.06748927]
[1765021145006,0.02764,89654.0,89653.0,0.44748927]
[1765021145206,0.0111504,89667.0,89666.0,0.05832]
[1765021145408,0.44305238,89667.0,89666.0,0.05832]
[1765021146511,0.44505238,89667.0,89666.0,0.05832]
[1765021147912,0.06035,89667.0,89666.0,0.06949393]
[1765021157817,0.002,89667.0,89666.0,0.49949393]
[1765021158015,0.00049808,89667.0,89666.0,0.49949393]
[1765021164020,0.08419506,89667.0,89666.0,0.43]
[1765021164324,0.05835,89654.0,89653.0,0.05848727]
[1765021164629,0.48835,89654.0,89653.0,0.05848727]
[1765021165414,0.24835,89654.0,89653.0,0.05848727]
[1765021165615,0.24835,89654.0,89653.0,0.05948727]
[1765021165923,0.24835,89654.0,89653.0,0.07063917]
[1765021166332,0.45835,89654.0,89653.0,0.07063917]
[1765021167625,0.18835,89654.0,89653.0,0.07063917]
[1765021176124,0.05835,89654.0,89653.0,0.07063917]
[1765021176326,0.02997,89654.0,89653.0,0.07063917]
[1765021176720,0.18894435,89670.0,89662.0,0.0111508]
[1765021176921,0.05596668,89663.0,89662.0,0.0687009]
[1765021177132,0.08116804,89663.0,89662.0,0.0687009]
[1765021177426,0.05596668,89663.0,89662.0,0.0687009]
[1765021178225,0.05696668,89663.0,89662.0,0.0687009]
[1765021178425,0.05616,89663.0,89662.0,0.0687009]
[1765021186733,0.02844,89663.0,89662.0,0.0687009]
[1765021187041,0.001,89663.0,89662.0,0.4187009]
[1765021190232,0.05817,89663.0,89662.0,0.3787009]
[1765021192436,0.05817,89663.0,89662.0,0.0687009]
[1765021194238,0.001,89663.0,89662.0,0.0687009]
[1765021195245,0.02951,89663.0,89662.0,0.0687009]
[1765021197544,0.05924,89663.0,89662.0,0.0687009]
[1765021201741,0.05924,89663.0,89662.0,0.0406809]
[1765021202155,0.41924,89663.0,89662.0,0.0111509]
[1765021202746,0.41924,89663.0,89662.0,0.0383909]
[1765021203345,0.41924,89663.0,89658.0,0.0111514]
[1765021203550,0.41924,89663.0,89653.0,0.00016727]
[1765021203551,0.05636,89654.0,89653.0,0.00016727]
[1765021203750,0.45144859,89654.0,89653.0,0.00016727]
[1765021204856,0.45144859,89654.0,89653.0,0.00116727]
[1765021210154,0.42636,89654.0,89653.0,0.00116727]
[1765021216459,0.05636,89654.0,89653.0,0.02840727]
[1765021216663,0.12636,89654.0,89653.0,0.05680727]
[1765021217662,0.37636,89654.0,89653.0,0.05680727]
[1765021218159,0.05636,89654.0,89653.0,0.05680727]
[1765021218552,0.05636,89654.0,89653.0,0.02840727]
[1765021218757,0.42636,89654.0,89653.0,0.02840727]
[1765021219165,0.42636,89654.0,89653.0,0.05680727]
[1765021224269,0.42636,89654.0,89653.0,0.02840727]
[1765021224566,0.42636,89654.0,89653.0,0.00116727]
[1765021225068,0.42636,89654.0,89653.0,0.02840727]
[1765021225858,0.42636,89654.0,89653.0,0.05680727]
[1765021229668,0.42636,89654.0,89653.0,0.02840727]
[1765021232375,0.42636,89654.0,89653.0,0.05829727]
[1765021233270,0.45151586,89654.0,89653.0,0.05829727]
[1765021237577,0.45151586,89654.0,89653.0,0.00116727]
[1765021237781,0.068513,89645.0,89644.0,0.08014176]
[1765021237983,0.05736,89641.0,89640.0,0.13794176]
[1765021238170,0.48736,89641.0,89640.0,0.0578]
[1765021238569,0.48736,89641.0,89640.0,0.02791]
[1765021239284,0.48736,89641.0,89640.0,0.0578]
[1765021239682,0.48736,89641.0,89640.0,0.0608]
[1765021241675,0.05736,89641.0,89640.0,0.0608]
[1765021241876,0.25736,89641.0,89640.0,0.0608]
[1765021247379,0.25736,89641.0,89640.0,0.07818]
[1765021250490,0.45736,89641.0,89640.0,0.07818]
[1765021251894,0.45736,89641.0,89640.0,0.0608]
[1765021254178,0.45736,89641.0,89640.0,0.07818]
[1765021265698,0.14736,89641.0,89640.0,0.07818]
[1765021265890,0.05736,89641.0,89640.0,0.07818]
[1765021273798,0.05561727,89649.0,89648.0,0.0672427]
[1765021274102,0.2907606,89649.0,89648.0,0.0672427]
[1765021275600,0.29075632,89649.0,89648.0,0.0672427]
[1765021276197,0.29075632,89649.0,89648.0,0.0682427]
[1765021276392,0.29075632,89649.0,89648.0,0.05709]
[1765021276591,0.29075632,89649.0,89648.0,0.02831]
[1765021280112,0.29075632,89649.0,89648.0,0.05709]
[1765021292400,0.30190882,89649.0,89648.0,0.05709]
[1765021301721,0.30190882,89649.0,89648.0,0.02831]
[1765021302328,0.30190882,89649.0,89648.0,0.001]
[1765021302629,0.31529882,89649.0,89648.0,0.001]
[1765021307740,0.30190882,89649.0,89648.0,0.0301]
[1765021309735,0.30190882,89649.0,89648.0,0.0571]
[1765021312942,0.0602255,89664.0,89663.0,0.05779]
[1765021313136,0.00027875,89686.0,89685.0,0.0111479]
[1765021313438,0.00027875,89686.0,89685.0,0.0854279]
[1765021314043,0.00027875,89686.0,89685.0,0.16556966]
[1765021314245,0.00027875,89686.0,89685.0,0.0854279]
[1765021314543,0.00027875,89686.0,89685.0,1.5854279]
[1765021315841,0.02758875,89686.0,89685.0,1.5854279]
[1765021316144,0.05475875,89686.0,89685.0,1.5854279]
[1765021316343,0.05475875,89686.0,89685.0,1.59650328]
[1765021317145,0.02758875,89686.0,89685.0,1.59650328]
[1765021317844,0.00027875,89686.0,89685.0,1.59650328]
[1765021320036,0.00027875,89686.0,89685.0,1.63624777]
[1765021320235,0.00027875,89686.0,89685.0,1.59650328]
[1765021327747,0.01643,89706.0,89685.0,1.59650328]
[1765021327748,0.05871,89720.0,89719.0,0.0682936]
[1765021330150,0.06171,89720.0,89719.0,0.0682936]
[1765021332943,0.003,89720.0,89719.0,0.0682936]
[1765021334143,0.05887727,89728.0,89725.0,0.0274629]
[1765021336551,0.06071001,89726.0,89725.0,0.0274629]
[1765021336755,0.06071001,89726.0,89725.0,0.0846129]
[1765021337152,0.03165001,89726.0,89725.0,0.0846129]
[1765021337848,0.06071001,89726.0,89725.0,0.0846129]
[1765021341457,0.06071001,89726.0,89725.0,0.0682929]
[1765021352863,0.36200001,89726.0,89718.0,0.02986257]
[1765021353071,0.36200001,89726.0,89714.0,0.03981676]
[1765021353072,0.05571,89716.0,89715.0,0.04100667]
[1765021353273,0.05571,89716.0,89715.0,0.0111441]
[1765021353274,0.46571,89716.0,89715.0,0.0111441]
[1765021354772,0.46671,89716.0,89715.0,0.0111441]
[1765021356175,0.46671,89716.0,89715.0,0.05096086]
[1765021357375,0.46671,89716.0,89715.0,0.0111441]
[1765021357676,0.09671,89716.0,89715.0,0.0665141]
[1765021357969,0.05671,89716.0,89715.0,0.0665141]
[1765021360276,0.05671,89716.0,89715.0,0.12599289]
[1765021361668,0.001,89716.0,89715.0,0.12599289]
[1765021361976,0.02861,89716.0,89715.0,0.0665141]
[1765021362476,0.05671,89716.0,89715.0,0.0665141]
[1765021365977,0.001,89716.0,89715.0,0.0665141]
[1765021366281,0.001,89716.0,89715.0,0.4265141]
[1765021367267,0.001,89716.0,89715.0,0.50627396]
[1765021367472,1e-08,89726.0,89725.0,0.0111429]
[1765021367679,0.05651669,89726.0,89725.0,0.0665129]
[1765021368174,0.05571001,89726.0,89725.0,0.12635077]
[1765021369375,0.05771001,89726.0,89725.0,0.12635077]
[1765021370169,0.05771001,89726.0,89725.0,0.0665129]
[1765021371779,0.00200001,89726.0,89725.0,0.0665129]
[1765021372382,0.03051001,89726.0,89725.0,0.0665129]
[1765021372583,0.05940001,89726.0,89725.0,0.0665129]
[1765021373087,0.05740001,89726.0,89725.0,0.0665129]
[1765021378496,0.02851001,89726.0,89725.0,0.0665129]
[1765021378695,0.05740001,89726.0,89725.0,0.0665129]
[1765021382197,0.05740001,89726.0,89725.0,0.0684529]
[1765021385499,0.05740001,89726.0,89725.0,0.0111429]
[1765021386901,0.07301,89724.0,89723.0,0.03992113]
[1765021387102,0.45381668,89724.0,89723.0,0.03992113]
[1765021388209,0.05512,89722.0,89721.0,0.0111433]
[1765021388511,0.05592668,89722.0,89721.0,0.05107918]
[1765021388694,0.44592668,89722.0,89721.0,0.05107918]
[1765021388895,0.44592668,89722.0,89721.0,0.03993588]
[1765021389097,0.44592668,89722.0,89720.0,0.03993588]
[1765021389407,0.05512,89718.0,89717.0,0.0111438]
[1765021389603,0.44592668,89718.0,89717.0,0.0111438]
[1765021389904,0.44592668,89718.0,89717.0,0.0684538]
[1765021391106,0.44592668,89718.0,89717.0,0.0694538]
[1765021391406,0.44592668,89718.0,89717.0,0.0419038]
[1765021391603,0.05592668,89718.0,89717.0,0.0694538]
[1765021391801,0.05512,89712.0,89711.0,0.07992713]
[1765021391993,0.05592668,89712.0,89711.0,0.00016727]
[1765021392200,0.07381668,89712.0,89711.0,0.00016727]
[1765021392795,0.44381668,89712.0,89711.0,0.00016727]
[1765021393311,0.44381668,89712.0,89711.0,0.04211796]
[1765021393608,0.44381668,89712.0,89711.0,0.00216727]
[1765021393907,0.44381668,89712.0,89711.0,0.00116727]
[1765021397411,0.44381668,89712.0,89711.0,0.05847727]
[1765021398411,0.44381668,89712.0,89711.0,0.08840275]
[1765021399812,0.09381668,89712.0,89711.0,0.08840275]
[1765021400113,0.09381668,89712.0,89711.0,0.05847727]
[1765021401210,0.07592668,89712.0,89711.0,0.05847727]
[1765021402116,0.05592668,89712.0,89711.0,0.05847727]
[1765021403015,0.05512,89712.0,89711.0,0.05847727]
[1765021409118,0.07301,89712.0,89711.0,0.05847727]
[1765021409629,0.05512,89712.0,89711.0,0.05847727]
[1765021412321,0.07047,89712.0,89711.0,0.00116727]
[1765021412528,0.07047,89712.0,89711.0,0.04107674]
[1765021413218,0.07047,89712.0,89711.0,0.00116727]
[1765021413421,0.46047,89712.0,89711.0,0.04108473]
[1765021413725,0.46047,89712.0,89711.0,0.00116727]
[1765021416032,0.46047,89712.0,89711.0,0.02892727]
[1765021417130,0.46047,89712.0,89711.0,0.05737727]
[1765021418028,0.07047,89712.0,89711.0,0.05737727]
[1765021418334,0.05512,89712.0,89711.0,0.05737727]
[1765021421732,0.07159,89712.0,89711.0,0.05737727]
[1765021425838,0.07159,89712.0,89711.0,0.00116727]
[1765021426835,0.07159,89712.0,89711.0,0.02892727]
[1765021427439,0.07159,89712.0,89711.0,0.05737727]
[1765021428631,0.0111398,89750.0,89724.0,0.01713]
[1765021428632,0.05959433,89738.0,89724.0,0.01713]
[1765021428838,8e-08,89728.0,89727.0,0.05621]
[1765021429028,8e-08,89728.0,89727.0,0.46621]
[1765021429228,0.02920008,89728.0,89727.0,0.46621]
[1765021429428,0.05845008,89728.0,89727.0,0.46621]
[1765021429624,0.0111385,89761.0,89749.0,0.0388999]
[1765021429838,0.0132485,89766.0,89749.0,0.0673499]
[1765021429839,0.05925668,89750.0,89749.0,0.0673499]
[1765021430037,0.42925668,89750.0,89749.0,0.0673499]
[1765021432140,0.43225668,89750.0,89749.0,0.0673499]
[1765021432737,0.83225668,89750.0,89749.0,0.0673499]
[1765021433040,0.43225668,89750.0,89749.0,0.0673499]
[1765021435739,0.05799,89742.0,89741.0,0.03838808]
[1765021435939,0.05879668,89742.0,89741.0,0.03838808]
[1765021436128,0.05879668,89742.0,89741.0,0.06821808]
[1765021437042,0.01413,89785.0,89757.0,0.0680489]
[1765021437336,0.05815718,89758.0,89757.0,0.0680489]
[1765021437533,0.00016718,89758.0,89757.0,0.09784217]
[1765021437729,0.00016718,89758.0,89757.0,0.0680489]
[1765021440240,0.00016718,89758.0,89757.0,0.10779941]
[1765021441441,0.05743718,89758.0,89757.0,0.0680489]
[1765021442744,0.05743718,89758.0,89757.0,0.09778189]
[1765021443244,0.05743718,89758.0,89757.0,0.0680489]
[1765021445144,0.0575285,89766.0,89765.0,0.05676]
[1765021445339,0.0575285,89766.0,89764.0,0.011138]
[1765021445340,0.05725,89765.0,89764.0,0.011138]
[1765021445741,0.45725,89765.0,89764.0,0.011138]
[1765021445940,0.45725,89765.0,89764.0,0.039608]
[1765021446443,0.45725,89765.0,89764.0,0.011138]
[1765021446840,0.83725,89765.0,89764.0,0.011138]
[1765021449949,0.43725,89765.0,89764.0,0.067898]
[1765021450149,0.10725,89765.0,89764.0,0.067898]
[1765021450346,0.0002785,89766.0,89765.0,0.05676]
[1765021450553,0.0002785,89766.0,89765.0,0.09637178]
[1765021450844,0.0575285,89766.0,89765.0,0.03961178]
[1765021451051,0.05725,89765.0,89764.0,0.039608]
[1765021451240,0.05725,89765.0,89764.0,0.067898]
[1765021451641,0.0002785,89766.0,89765.0,0.05676]
[1765021451841,0.0286585,89766.0,89765.0,0.05676]
[1765021452444,0.0575285,89766.0,89765.0,0.05676]
[1765021455245,0.0575285,89766.0,89765.0,0.08649236]
[1765021456147,0.0575285,89766.0,89765.0,0.05676]
[1765021456649,0.0002785,89766.0,89765.0,0.05676]
[1765021456953,0.0286585,89766.0,89765.0,0.05676]
[1765021457153,0.0575285,89766.0,89765.0,0.05676]
[1765021459250,0.0575285,89766.0,89765.0,0.11617767]
[1765021460152,0.0575285,89766.0,89765.0,0.05676]
[1765021463257,0.0575285,89766.0,89765.0,0.11617767]
[1765021463750,0.0002785,89766.0,89765.0,0.11617767]
[1765021464151,0.0002785,89766.0,89765.0,0.05676]
[1765021464656,0.0286585,89766.0,89765.0,0.05676]
[1765021465749,0.0002785,89766.0,89765.0,0.05676]
[1765021466256,0.0575285,89766.0,89765.0,0.05676]
[1765021466456,0.0002785,89766.0,89765.0,0.05676]
[1765021467352,0.0002785,89766.0,89765.0,0.07312]
[1765021468758,0.0575285,89766.0,89765.0,0.07312]
[1765021470460,0.0575285,89766.0,89765.0,0.13298797]
[1765021470656,0.0575285,89766.0,89765.0,0.07312]
[1765021471365,0.0575285,89766.0,89765.0,0.02847]
[1765021471861,0.05691,89765.0,89764.0,0.011138]
[1765021472058,0.05691,89765.0,89764.0,0.039758]
[1765021472258,0.05691,89765.0,89764.0,0.068268]
[1765021472955,0.05691,89765.0,89764.0,0.011138]
[1765021473160,0.47104,89765.0,89764.0,0.011138]
[1765021474360,0.47104,89765.0,89762.0,0.02994268]
[1765021474361,0.05691,89763.0,89762.0,0.02994268]
[1765021474556,0.05691,89758.0,89757.0,0.02994268]
[1765021475160,0.0111383,89762.0,89740.0,0.19295369]
[1765021475161,0.05691,89756.0,89755.0,0.04108188]
[1765021475570,0.44691,89756.0,89755.0,0.04108188]
[1765021477265,0.44691,89756.0,89755.0,0.0111392]
[1765021478254,0.44691,89756.0,89755.0,0.0121392]
[1765021480269,0.44691,89756.0,89755.0,0.0692692]
[1765021481862,0.44691,89756.0,89755.0,0.0407592]
[1765021482665,0.44691,89756.0,89755.0,0.0692692]
[1765021485069,0.19691,89756.0,89755.0,0.0870492]
[1765021485269,0.0571885,89766.0,89765.0,0.0860479]
[1765021485469,0.1271885,89766.0,89765.0,0.0860479]
[1765021485773,0.3371885,89766.0,89765.0,0.0682679]
[1765021488266,0.0771885,89766.0,89765.0,0.0682679]
[1765021488667,0.0971885,89766.0,89765.0,0.0682679]
[1765021489965,0.4571885,89766.0,89765.0,0.09814238]
[1765021490166,0.4571885,89766.0,89765.0,0.09814389]
[1765021493371,0.4571885,89766.0,89765.0,0.04101389]
[1765021493966,0.4571885,89766.0,89765.0,0.04102001]
[1765021494167,0.4571885,89766.0,89765.0,0.09918304]
[1765021494371,0.0111381,89764.0,89741.0,0.07966821]
[1765021494668,0.0111381,89764.0,89741.0,0.00016718]
[1765021494669,0.0111408,89742.0,89741.0,0.00016718]
[1765021494879,0.3911408,89742.0,89741.0,0.00016718]
[1765021497372,0.3921408,89742.0,89741.0,0.00016718]
[1765021497769,0.3911408,89742.0,89741.0,0.00016718]
[1765021498675,0.3921408,89742.0,89741.0,0.00016718]
[1765021500373,0.3921408,89742.0,89741.0,0.05581718]
[1765021501171,0.0111421,89731.0,89730.0,0.01654]
[1765021501373,0.0111428,89726.0,89720.0,0.01654]
[1765021501574,0.4111428,89726.0,89720.0,0.01654]
[1765021502473,0.4121428,89726.0,89720.0,0.01654]
[1765021503381,0.4121428,89726.0,89725.0,0.07334]
[1765021513391,0.401,89726.0,89725.0,0.07334]
[1765021521094,0.071,89726.0,89725.0,0.07334]
[1765021523395,0.001,89726.0,89725.0,0.07334]
[1765021529095,0.001,89726.0,89725.0,0.13296626]
[1765021530305,0.001,89726.0,89725.0,0.07334]
[1765021541820,0.001,89726.0,89725.0,0.46334]
[1765021544122,0.16405569,89740.0,89739.0,0.05576]
[1765021544324,0.16405569,89749.0,89748.0,0.07211]
[1765021544522,0.4,89749.0,89748.0,0.01635]
[1765021544816,0.4,89749.0,89748.0,0.07211]
[1765021546022,0.401,89749.0,89748.0,0.07211]
[1765021546621,0.01114,89748.0,89744.0,0.01635]
[1765021546816,0.40114,89748.0,89744.0,0.01635]
[1765021547016,0.40114,89748.0,89744.0,0.04469]
[1765021547217,0.40114,89748.0,89744.0,0.07211]
[1765021547519,0.40114,89748.0,89744.0,0.0832504]
[1765021547712,0.39,89748.0,89744.0,0.0832504]
[1765021548809,0.393,89748.0,89744.0,0.0832504]
[1765021549822,0.393,89748.0,89747.0,0.05576]
[1765021553127,0.003,89748.0,89747.0,0.05576]
[1765021554429,0.263,89748.0,89747.0,0.05576]
[1765021561228,0.123,89748.0,89747.0,0.05576]
[1765021561939,0.383,89748.0,89747.0,0.05576]
[1765021573636,0.383,89748.0,89747.0,0.09568048]
[1765021577230,0.383,89748.0,89747.0,0.05576]
[1765021577434,0.383,89748.0,89747.0,0.09567398]
[1765021577943,0.383,89748.0,89747.0,0.05576]
[1765021578243,0.123,89748.0,89747.0,0.05576]
[1765021582730,0.403,89748.0,89747.0,0.05576]
[1765021583648,0.073,89748.0,89747.0,0.05576]
[1765021585236,0.003,89748.0,89747.0,0.05576]
[1765021586448,0.0008327,89748.0,89747.0,0.05576]
[1765021596152,0.00016718,89750.0,89749.0,0.05943]
[1765021613774,0.00016718,89750.0,89749.0,0.11933219]
[1765021614483,0.00016718,89750.0,89749.0,0.05943]
[1765021614984,0.0002785,89766.0,89765.0,0.0683079]
[1765021615188,0.4002785,89766.0,89765.0,0.0683079]
[1765021616285,0.4002785,89766.0,89765.0,0.05717]
[1765021631795,0.1902785,89766.0,89765.0,0.05717]
[1765021633192,0.1902785,89766.0,89765.0,0.02985]
[1765021633395,0.1902785,89766.0,89765.0,0.05849]
[1765021642091,0.1902785,89766.0,89765.0,0.02985]
[1765021642397,0.1902785,89766.0,89765.0,0.05849]
[1765021644598,0.16391338,89775.0,89774.0,0.05579]
[1765021644898,0.21,89775.0,89774.0,0.05579]